[Event "Titled Tuesday Blitz May 31 Late 2022"]
[White "Eljanov, Pavel"]
[Black "Lomaia, Diana"]
[WhiteFideId "14102951"]
[BlackFideId "13612476"]
[WhiteElo "2601"]
[BlackElo "1744"]
[Result "1-0"]
[Round "09"]
[TimeControl "180+1"]
[Date "2022.05.31"]
[WhiteClock "0:00:18"]
[BlackClock "0:00:32"]

1. d4 {[%clk 0:03:00]}  Nf6 {[%clk 0:02:59]} 2. c4 {[%clk 0:03:00]}  b6 {[%clk 0:02:55]} 3. f3 {[%clk 0:02:59]}  d5 {[%clk 0:02:54]} 4. cxd5 {[%clk 0:02:59]}  Qxd5 {[%clk 0:02:53]} 5. e4 {[%clk 0:02:57]}  Qh5 {[%clk 0:02:53]} 6. Nc3 {[%clk 0:02:55]}  e6 {[%clk 0:02:53]} 7. Nge2 {[%clk 0:02:47]}  Bb7 {[%clk 0:02:51]} 8. Ng3 {[%clk 0:02:45]}  Qa5 {[%clk 0:02:50]} 9. Bd2 {[%clk 0:02:40]}  Qb4 {[%clk 0:02:38]} 10. e5 {[%clk 0:02:26]}  Ng8 {[%clk 0:02:26]} 11. Nd5 {[%clk 0:02:04]}  Qxd4 {[%clk 0:02:08]} 12. Nxc7+ {[%clk 0:02:04]}  Kd7 {[%clk 0:02:01]} 13. Nxa8 {[%clk 0:02:04]}  Qxe5+ {[%clk 0:01:58]} 14. Be2 {[%clk 0:01:56]}  Bd6 {[%clk 0:01:33]} 15. Bc3 {[%clk 0:01:44]}  Qc5 {[%clk 0:01:25]} 16. Ne4 {[%clk 0:01:36]}  Bxe4 {[%clk 0:01:21]} 17. fxe4 {[%clk 0:01:37]}  Nf6 {[%clk 0:01:20]} 18. Qa4+ {[%clk 0:01:36]}  Nc6 {[%clk 0:01:13]} 19. e5 {[%clk 0:01:32]}  Bxe5 {[%clk 0:01:13]} 20. O-O-O+ {[%clk 0:01:30]}  Nd5 {[%clk 0:01:12]} 21. Rxd5+ {[%clk 0:01:29]}  exd5 {[%clk 0:01:12]} 22. Qg4+ {[%clk 0:00:29]}  Ke7 {[%clk 0:01:07]} 23. Nc7 {[%clk 0:00:27]}  Bxc7 {[%clk 0:01:03]} 24. Qxg7 {[%clk 0:00:24]}  d4 {[%clk 0:00:51]} 25. Qxh8 {[%clk 0:00:22]}  dxc3 {[%clk 0:00:51]} 26. Qxc3 {[%clk 0:00:21]}  Qg5+ {[%clk 0:00:43]} 27. Kb1 {[%clk 0:00:22]}  Qxg2 {[%clk 0:00:42]} 28. Bf3 {[%clk 0:00:21]}  Qg6+ {[%clk 0:00:42]} 29. Ka1 {[%clk 0:00:20]}  Kd7 {[%clk 0:00:34]} 30. Rd1+ {[%clk 0:00:18]}  Bd6 {[%clk 0:00:32]} 31. Qxc6+ {[%clk 0:00:18]} 1-0


[Site "https://www.chess.com"]

[Event "Titled Tuesday Blitz May 31 Late 2022"]
[White "Halkias, Stelios"]
[Black "Grischuk, Alexander"]
[WhiteFideId "4201809"]
[BlackFideId "4126025"]
[WhiteElo "2453"]
[BlackElo "2762"]
[Result "0-1"]
[Round "09"]
[TimeControl "180+1"]
[Date "2022.05.31"]
[WhiteClock "0:00:01"]
[BlackClock "0:00:04"]

1. Nf3 {[%clk 0:03:00]}  Nf6 {[%clk 0:02:59]} 2. c4 {[%clk 0:03:00]}  c5 {[%clk 0:02:58]} 3. Nc3 {[%clk 0:02:59]}  Nc6 {[%clk 0:02:58]} 4. e3 {[%clk 0:02:58]}  e6 {[%clk 0:02:56]} 5. d4 {[%clk 0:02:58]}  d5 {[%clk 0:02:57]} 6. cxd5 {[%clk 0:02:58]}  exd5 {[%clk 0:02:56]} 7. Bb5 {[%clk 0:02:55]}  cxd4 {[%clk 0:02:56]} 8. Nxd4 {[%clk 0:02:54]}  Bd7 {[%clk 0:02:56]} 9. O-O {[%clk 0:02:54]}  Bd6 {[%clk 0:02:55]} 10. e4 {[%clk 0:02:47]}  dxe4 {[%clk 0:02:52]} 11. Nxc6 {[%clk 0:02:19]}  Bxc6 {[%clk 0:02:51]} 12. Bxc6+ {[%clk 0:02:19]}  bxc6 {[%clk 0:02:52]} 13. Qa4 {[%clk 0:02:15]}  O-O {[%clk 0:02:52]} 14. Nxe4 {[%clk 0:02:13]}  Nxe4 {[%clk 0:02:48]} 15. Qxe4 {[%clk 0:02:12]}  Re8 {[%clk 0:02:49]} 16. Qf3 {[%clk 0:02:11]}  Bc5 {[%clk 0:02:41]} 17. Bf4 {[%clk 0:01:33]}  Bd4 {[%clk 0:02:27]} 18. Qxc6 {[%clk 0:01:20]}  Rc8 {[%clk 0:02:25]} 19. Qa4 {[%clk 0:01:18]}  Qb6 {[%clk 0:01:52]} 20. Rad1 {[%clk 0:00:48]}  Red8 {[%clk 0:01:44]} 21. Bg3 {[%clk 0:00:36]}  Qxb2 {[%clk 0:01:37]} 22. Rfe1 {[%clk 0:00:34]}  h6 {[%clk 0:01:34]} 23. h3 {[%clk 0:00:33]}  Qb6 {[%clk 0:01:15]} 24. Rd2 {[%clk 0:00:25]}  Bc5 {[%clk 0:00:58]} 25. Rde2 {[%clk 0:00:24]}  Qc6 {[%clk 0:00:48]} 26. Qg4 {[%clk 0:00:22]}  Re8 {[%clk 0:00:27]} 27. Rxe8+ {[%clk 0:00:16]}  Rxe8 {[%clk 0:00:28]} 28. Rxe8+ {[%clk 0:00:16]}  Qxe8 {[%clk 0:00:29]} 29. Qd1 {[%clk 0:00:15]}  Bb6 {[%clk 0:00:26]} 30. Kh2 {[%clk 0:00:13]}  Qe6 {[%clk 0:00:26]} 31. Qc2 {[%clk 0:00:11]}  g5 {[%clk 0:00:20]} 32. a4 {[%clk 0:00:07]}  Kg7 {[%clk 0:00:12]} 33. Bc7 {[%clk 0:00:06]}  Bd4 {[%clk 0:00:12]} 34. g4 {[%clk 0:00:03]}  Qd5 {[%clk 0:00:10]} 35. Bg3 {[%clk 0:00:02]}  Be5 {[%clk 0:00:06]} 36. Qe2 {[%clk 0:00:01]}  Bxg3+ {[%clk 0:00:06]} 37. fxg3 {[%clk 0:00:01]}  Qd4 {[%clk 0:00:07]} 38. Qc2 {[%clk 0:00:01]}  a5 {[%clk 0:00:06]} 39. Kg2 {[%clk 0:00:01]}  Qd5+ {[%clk 0:00:06]} 40. Kf2 {[%clk 0:00:01]}  Qe5 {[%clk 0:00:07]} 41. Kf3 {[%clk 0:00:01]}  Qe1 {[%clk 0:00:07]} 42. Qb2+ {[%clk 0:00:01]}  Kh7 {[%clk 0:00:06]} 43. Qd4 {[%clk 0:00:01]}  Qf1+ {[%clk 0:00:06]} 44. Ke4 {[%clk 0:00:02]}  Qxh3 {[%clk 0:00:05]} 45. Kf5 {[%clk 0:00:02]}  Qf1+ {[%clk 0:00:05]} 46. Ke5 {[%clk 0:00:02]}  Qe2+ {[%clk 0:00:05]} 47. Kd6 {[%clk 0:00:03]}  Qe6+ {[%clk 0:00:04]} 48. Kc7 {[%clk 0:00:03]}  Kg6 {[%clk 0:00:04]} 49. Qb6 {[%clk 0:00:02]}  h5 {[%clk 0:00:04]} 50. gxh5+ {[%clk 0:00:02]}  Kxh5 {[%clk 0:00:04]} 51. Qf2 {[%clk 0:00:01]}  Kg4 {[%clk 0:00:04]} 52. Kb7 {[%clk 0:00:01]}  f5 {[%clk 0:00:05]} 53. Qd2 {[%clk 0:00:01]}  Qf6 {[%clk 0:00:04]} 0-1


[Site "https://www.chess.com"]

[Event "Titled Tuesday Blitz May 31 Late 2022"]
[White "Karttunen, Mika"]
[Black "Jarocka, Liwia"]
[WhiteFideId "502081"]
[BlackFideId "21807558"]
[WhiteElo "2343"]
[BlackElo "1887"]
[Result "0-1"]
[Round "09"]
[TimeControl "180+1"]
[Date "2022.06.01"]
[WhiteClock "0:00:01"]
[BlackClock "0:00:43"]

1. e4 {[%clk 0:02:53]}  e5 {[%clk 0:02:54]} 2. Nf3 {[%clk 0:02:53]}  Nc6 {[%clk 0:02:54]} 3. d4 {[%clk 0:02:52]}  exd4 {[%clk 0:02:54]} 4. Nxd4 {[%clk 0:02:53]}  Bb4+ {[%clk 0:02:53]} 5. c3 {[%clk 0:02:50]}  Bc5 {[%clk 0:02:53]} 6. Be3 {[%clk 0:02:50]}  Bb6 {[%clk 0:02:53]} 7. Bc4 {[%clk 0:02:45]}  Nf6 {[%clk 0:02:52]} 8. Nd2 {[%clk 0:02:39]}  O-O {[%clk 0:02:49]} 9. Nxc6 {[%clk 0:02:00]}  dxc6 {[%clk 0:02:47]} 10. Bxb6 {[%clk 0:01:57]}  axb6 {[%clk 0:02:47]} 11. f3 {[%clk 0:01:48]}  Re8 {[%clk 0:02:46]} 12. Nf1 {[%clk 0:01:32]}  b5 {[%clk 0:02:46]} 13. Qxd8 {[%clk 0:01:30]}  Rxd8 {[%clk 0:02:46]} 14. Be2 {[%clk 0:01:30]}  Be6 {[%clk 0:02:43]} 15. a3 {[%clk 0:01:27]}  Nd7 {[%clk 0:02:39]} 16. O-O-O {[%clk 0:01:14]}  Nc5 {[%clk 0:02:36]} 17. Ne3 {[%clk 0:01:06]}  Kf8 {[%clk 0:02:35]} 18. Rxd8+ {[%clk 0:01:04]}  Rxd8 {[%clk 0:02:34]} 19. Rd1 {[%clk 0:01:04]}  Rxd1+ {[%clk 0:02:34]} 20. Kxd1 {[%clk 0:01:02]}  Ke7 {[%clk 0:02:33]} 21. Kd2 {[%clk 0:00:50]}  f6 {[%clk 0:02:33]} 22. Bd3 {[%clk 0:00:50]}  h6 {[%clk 0:02:30]} 23. Bc2 {[%clk 0:00:51]}  Nd7 {[%clk 0:02:28]} 24. f4 {[%clk 0:00:47]}  Nb6 {[%clk 0:02:26]} 25. g3 {[%clk 0:00:46]}  Bc4 {[%clk 0:02:21]} 26. Nxc4 {[%clk 0:00:39]}  Nxc4+ {[%clk 0:02:18]} 27. Kc1 {[%clk 0:00:39]}  Ne3 {[%clk 0:02:17]} 28. Bd3 {[%clk 0:00:30]}  Ng4 {[%clk 0:02:09]} 29. h4 {[%clk 0:00:29]}  Nf2 {[%clk 0:02:02]} 30. Kd2 {[%clk 0:00:29]}  Nh1 {[%clk 0:01:52]} 31. g4 {[%clk 0:00:25]}  Nf2 {[%clk 0:01:51]} 32. g5 {[%clk 0:00:25]}  hxg5 {[%clk 0:01:49]} 33. hxg5 {[%clk 0:00:22]}  fxg5 {[%clk 0:01:48]} 34. fxg5 {[%clk 0:00:22]}  Nh3 {[%clk 0:01:48]} 35. g6 {[%clk 0:00:22]}  Kf6 {[%clk 0:01:46]} 36. Ke3 {[%clk 0:00:21]}  Ke5 {[%clk 0:01:46]} 37. c4 {[%clk 0:00:16]}  bxc4 {[%clk 0:01:29]} 38. Bxc4 {[%clk 0:00:16]}  b6 {[%clk 0:01:28]} 39. a4 {[%clk 0:00:15]}  c5 {[%clk 0:01:28]} 40. b3 {[%clk 0:00:13]}  Nf4 {[%clk 0:01:26]} 41. Bf7 {[%clk 0:00:13]}  Nh5 {[%clk 0:01:26]} 42. Bd5 {[%clk 0:00:10]}  Nf6 {[%clk 0:01:26]} 43. Bc6 {[%clk 0:00:10]}  Nh5 {[%clk 0:01:23]} 44. Bd5 {[%clk 0:00:09]}  Nf4 {[%clk 0:01:23]} 45. Bf7 {[%clk 0:00:08]}  Nh3 {[%clk 0:01:21]} 46. Be8 {[%clk 0:00:06]}  Ng5 {[%clk 0:01:19]} 47. Bf7 {[%clk 0:00:06]}  Nxe4 {[%clk 0:01:18]} 48. Kd3 {[%clk 0:00:06]}  Nd6 {[%clk 0:01:18]} 49. Bg8 {[%clk 0:00:04]}  Kf6 {[%clk 0:01:16]} 50. Bh7 {[%clk 0:00:05]}  c6 {[%clk 0:01:11]} 51. Kc3 {[%clk 0:00:05]}  Ke5 {[%clk 0:01:08]} 52. Bg8 {[%clk 0:00:04]}  Ne4+ {[%clk 0:01:06]} 53. Kd3 {[%clk 0:00:04]}  Nf6 {[%clk 0:01:06]} 54. Bf7 {[%clk 0:00:05]}  Nh5 {[%clk 0:01:06]} 55. Be8 {[%clk 0:00:05]}  Kd6 {[%clk 0:01:02]} 56. Kc4 {[%clk 0:00:04]}  Nf6 {[%clk 0:00:58]} 57. Bf7 {[%clk 0:00:04]}  Ne4 {[%clk 0:00:54]} 58. Kd3 {[%clk 0:00:03]}  Ng5 {[%clk 0:00:53]} 59. Be8 {[%clk 0:00:04]}  Ne6 {[%clk 0:00:53]} 60. Kc4 {[%clk 0:00:03]}  Nc7 {[%clk 0:00:51]} 61. Bf7 {[%clk 0:00:03]}  b5+ {[%clk 0:00:51]} 62. Kc3 {[%clk 0:00:02]}  c4 {[%clk 0:00:47]} 63. a5 {[%clk 0:00:02]}  cxb3 {[%clk 0:00:47]} 64. Kxb3 {[%clk 0:00:02]}  c5 {[%clk 0:00:45]} 65. Kc3 {[%clk 0:00:01]}  Kc6 {[%clk 0:00:43]} 0-1


[Site "https://www.chess.com"]

[Event "Titled Tuesday Blitz May 31 Late 2022"]
[White "Korchmar, Vasiliy"]
[Black "Petrovic, Aleksa"]
[WhiteFideId "24131750"]
[BlackFideId "967629"]
[WhiteElo "2370"]
[BlackElo "2144"]
[Result "1/2-1/2"]
[Round "09"]
[TimeControl "180+1"]
[Date "2022.05.31"]
[WhiteClock "0:00:03"]
[BlackClock "0:00:03"]

1. e4 {[%clk 0:03:00]}  c6 {[%clk 0:02:57]} 2. d4 {[%clk 0:03:00]}  d5 {[%clk 0:02:57]} 3. e5 {[%clk 0:03:01]}  c5 {[%clk 0:02:57]} 4. dxc5 {[%clk 0:03:01]}  e6 {[%clk 0:02:57]} 5. Be3 {[%clk 0:03:00]}  Nd7 {[%clk 0:02:56]} 6. Bb5 {[%clk 0:03:00]}  Qc7 {[%clk 0:02:41]} 7. b4 {[%clk 0:02:47]}  Qxe5 {[%clk 0:02:34]} 8. Nd2 {[%clk 0:02:47]}  a6 {[%clk 0:02:23]} 9. Bd3 {[%clk 0:02:41]}  Qc3 {[%clk 0:02:16]} 10. Rb1 {[%clk 0:02:37]}  Ne5 {[%clk 0:02:08]} 11. Be2 {[%clk 0:02:30]}  Nc4 {[%clk 0:01:53]} 12. Bxc4 {[%clk 0:02:27]}  dxc4 {[%clk 0:01:54]} 13. Ne2 {[%clk 0:02:22]}  Qe5 {[%clk 0:01:21]} 14. Nxc4 {[%clk 0:02:21]}  Qc7 {[%clk 0:01:18]} 15. O-O {[%clk 0:02:16]}  Bd7 {[%clk 0:01:15]} 16. Ng3 {[%clk 0:02:06]}  Bb5 {[%clk 0:01:09]} 17. Nd6+ {[%clk 0:02:05]}  Bxd6 {[%clk 0:01:06]} 18. cxd6 {[%clk 0:02:06]}  Qd7 {[%clk 0:01:01]} 19. Re1 {[%clk 0:02:06]}  Nf6 {[%clk 0:00:58]} 20. Bg5 {[%clk 0:02:04]}  O-O-O {[%clk 0:00:50]} 21. Ne4 {[%clk 0:01:25]}  Nxe4 {[%clk 0:00:44]} 22. Bxd8 {[%clk 0:01:25]}  Nc3 {[%clk 0:00:42]} 23. Qd4 {[%clk 0:01:11]}  Nxb1 {[%clk 0:00:41]} 24. Bc7 {[%clk 0:01:11]}  Qc6 {[%clk 0:00:15]} 25. Rxb1 {[%clk 0:01:05]}  f6 {[%clk 0:00:14]} 26. a4 {[%clk 0:00:54]}  Qxc2 {[%clk 0:00:12]} 27. Ra1 {[%clk 0:00:45]}  Bc6 {[%clk 0:00:09]} 28. b5 {[%clk 0:00:42]}  Qe4 {[%clk 0:00:09]} 29. Qxe4 {[%clk 0:00:34]}  Bxe4 {[%clk 0:00:09]} 30. f3 {[%clk 0:00:28]}  Bd3 {[%clk 0:00:08]} 31. Rd1 {[%clk 0:00:19]}  Be2 {[%clk 0:00:05]} 32. Re1 {[%clk 0:00:19]}  Bc4 {[%clk 0:00:05]} 33. bxa6 {[%clk 0:00:14]}  bxa6 {[%clk 0:00:03]} 34. Rc1 {[%clk 0:00:14]}  Bd5 {[%clk 0:00:02]} 35. Rb1 {[%clk 0:00:05]}  Kd7 {[%clk 0:00:03]} 36. Kf2 {[%clk 0:00:03]}  Ra8 {[%clk 0:00:04]} 37. a5 {[%clk 0:00:03]}  Ra7 {[%clk 0:00:04]} 38. Ke3 {[%clk 0:00:03]}  Rb7 {[%clk 0:00:04]} 39. Rc1 {[%clk 0:00:02]}  Rb3+ {[%clk 0:00:04]} 40. Kf2 {[%clk 0:00:02]}  Rb2+ {[%clk 0:00:04]} 41. Kg3 {[%clk 0:00:02]}  Rb5 {[%clk 0:00:04]} 42. h4 {[%clk 0:00:02]}  h5 {[%clk 0:00:03]} 43. Rc3 {[%clk 0:00:02]}  Rb3 {[%clk 0:00:03]} 44. Rc2 {[%clk 0:00:02]}  g5 {[%clk 0:00:03]} 45. hxg5 {[%clk 0:00:02]}  fxg5 {[%clk 0:00:04]} 46. Kh2 {[%clk 0:00:02]}  g4 {[%clk 0:00:04]} 47. Re2 {[%clk 0:00:03]}  gxf3 {[%clk 0:00:04]} 48. gxf3 {[%clk 0:00:03]}  Rxf3 {[%clk 0:00:04]} 49. Rg2 {[%clk 0:00:03]}  Rf7 {[%clk 0:00:03]} 50. Rg8 {[%clk 0:00:04]}  Rf2+ {[%clk 0:00:02]} 51. Kg1 {[%clk 0:00:03]}  Rf7 {[%clk 0:00:02]} 52. Rd8+ {[%clk 0:00:03]}  Kc6 {[%clk 0:00:01]} 53. Rh8 {[%clk 0:00:04]}  Rxc7 {[%clk 0:00:01]} 54. dxc7 {[%clk 0:00:05]}  Kxc7 {[%clk 0:00:02]} 55. Rxh5 {[%clk 0:00:05]}  Kc6 {[%clk 0:00:03]} 56. Rh2 {[%clk 0:00:04]}  Kb5 {[%clk 0:00:04]} 57. Rb2+ {[%clk 0:00:05]}  Kxa5 {[%clk 0:00:04]} 58. Kf2 {[%clk 0:00:05]}  Ka4 {[%clk 0:00:04]} 59. Ke3 {[%clk 0:00:06]}  a5 {[%clk 0:00:05]} 60. Kd4 {[%clk 0:00:06]}  Ka3 {[%clk 0:00:05]} 61. Kc3 {[%clk 0:00:06]}  a4 {[%clk 0:00:05]} 62. Re2 {[%clk 0:00:07]}  Bb3 {[%clk 0:00:04]} 63. Rb2 {[%clk 0:00:07]}  e5 {[%clk 0:00:04]} 64. Re2 {[%clk 0:00:07]}  e4 {[%clk 0:00:03]} 65. Rxe4 {[%clk 0:00:07]}  Ka2 {[%clk 0:00:04]} 66. Re2+ {[%clk 0:00:07]}  Kb1 {[%clk 0:00:04]} 67. Kb4 {[%clk 0:00:07]}  Kc1 {[%clk 0:00:04]} 68. Kc3 {[%clk 0:00:06]}  Kd1 {[%clk 0:00:04]} 69. Rh2 {[%clk 0:00:06]}  Ke1 {[%clk 0:00:04]} 70. Rb2 {[%clk 0:00:05]}  Kf1 {[%clk 0:00:04]} 71. Rd2 {[%clk 0:00:05]}  Kg1 {[%clk 0:00:04]} 72. Rb2 {[%clk 0:00:04]}  Kh1 {[%clk 0:00:04]} 73. Kd3 {[%clk 0:00:05]}  Bd5 {[%clk 0:00:03]} 74. Ke3 {[%clk 0:00:05]}  a3 {[%clk 0:00:02]} 75. Rb5 {[%clk 0:00:03]}  a2 {[%clk 0:00:02]} 76. Ra5 {[%clk 0:00:03]}  Kg2 {[%clk 0:00:02]} 77. Kd2 {[%clk 0:00:03]}  Kf3 {[%clk 0:00:01]} 78. Kc2 {[%clk 0:00:03]}  Ke4 {[%clk 0:00:02]} 79. Kb2 {[%clk 0:00:03]}  Ke5 {[%clk 0:00:02]} 80. Ra4 {[%clk 0:00:03]}  Ke6 {[%clk 0:00:02]} 81. Ra3 {[%clk 0:00:04]}  Ke5 {[%clk 0:00:03]} 82. Re3+ {[%clk 0:00:04]}  Kd6 {[%clk 0:00:03]} 83. Re1 {[%clk 0:00:05]}  Kc5 {[%clk 0:00:03]} 84. Rd1 {[%clk 0:00:06]}  Kd6 {[%clk 0:00:04]} 85. Rc1 {[%clk 0:00:07]}  Ke5 {[%clk 0:00:05]} 86. Ka1 {[%clk 0:00:07]}  Kd6 {[%clk 0:00:05]} 87. Re1 {[%clk 0:00:08]}  Kc5 {[%clk 0:00:05]} 88. Rg1 {[%clk 0:00:09]}  Kd6 {[%clk 0:00:06]} 89. Rg5 {[%clk 0:00:10]}  Kc5 {[%clk 0:00:06]} 90. Rh5 {[%clk 0:00:11]}  Kc4 {[%clk 0:00:07]} 91. Rh4+ {[%clk 0:00:11]}  Kc5 {[%clk 0:00:07]} 92. Kb2 {[%clk 0:00:11]}  Kc6 {[%clk 0:00:07]} 93. Rg4 {[%clk 0:00:12]}  Kd6 {[%clk 0:00:08]} 94. Rg1 {[%clk 0:00:12]}  Kc5 {[%clk 0:00:08]} 95. Kc3 {[%clk 0:00:13]}  Kd6 {[%clk 0:00:08]} 96. Kd4 {[%clk 0:00:13]}  Be6 {[%clk 0:00:08]} 97. Rc1 {[%clk 0:00:13]}  Bd5 {[%clk 0:00:07]} 98. Rg1 {[%clk 0:00:12]}  Be6 {[%clk 0:00:07]} 99. Ra1 {[%clk 0:00:08]}  Bd5 {[%clk 0:00:06]} 100. Kc3 {[%clk 0:00:08]}  Kc5 {[%clk 0:00:06]} 101. Re1 {[%clk 0:00:07]}  Bc6 {[%clk 0:00:05]} 102. Re5+ {[%clk 0:00:06]}  Bd5 {[%clk 0:00:05]} 103. Kb2 {[%clk 0:00:07]}  Kd4 {[%clk 0:00:04]} 104. Re8 {[%clk 0:00:07]}  Bc4 {[%clk 0:00:04]} 105. Rd8+ {[%clk 0:00:07]}  Kc5 {[%clk 0:00:04]} 106. Rc8+ {[%clk 0:00:07]}  Kd4 {[%clk 0:00:05]} 107. Ra8 {[%clk 0:00:08]}  Kc5 {[%clk 0:00:05]} 108. Kc3 {[%clk 0:00:08]}  Bd5 {[%clk 0:00:04]} 109. Ra5+ {[%clk 0:00:08]}  Kd6 {[%clk 0:00:05]} 110. Kd4 {[%clk 0:00:08]}  Be6 {[%clk 0:00:05]} 111. Ra6+ {[%clk 0:00:08]}  Kd7 {[%clk 0:00:05]} 112. Ke5 {[%clk 0:00:09]}  Bc4 {[%clk 0:00:05]} 113. Ra4 {[%clk 0:00:08]}  Bb3 {[%clk 0:00:03]} 114. Ra3 {[%clk 0:00:08]}  Kc6 {[%clk 0:00:03]} 115. Kd4 {[%clk 0:00:07]}  Bf7 {[%clk 0:00:03]} 116. Kc3 {[%clk 0:00:06]}  Kb5 {[%clk 0:00:03]} 117. Ra7 {[%clk 0:00:05]}  Be6 {[%clk 0:00:02]} 118. Kb2 {[%clk 0:00:04]}  Bd5 {[%clk 0:00:02]} 119. Rd7 {[%clk 0:00:04]}  Kc5 {[%clk 0:00:02]} 120. Ra7 {[%clk 0:00:04]}  Kd4 {[%clk 0:00:02]} 121. Ra4+ {[%clk 0:00:04]}  Ke5 {[%clk 0:00:02]} 122. Kc3 {[%clk 0:00:04]}  Be6 {[%clk 0:00:02]} 123. Ra5+ {[%clk 0:00:04]}  Kf6 {[%clk 0:00:02]} 124. Kd4 {[%clk 0:00:04]}  Bf5 {[%clk 0:00:02]} 125. Ke3 {[%clk 0:00:03]}  Be6 {[%clk 0:00:03]} 1/2-1/2


[Site "https://www.chess.com"]

[Event "Titled Tuesday Blitz May 31 Late 2022"]
[White "Livaic, Leon"]
[Black "Indjic, Aleksandar"]
[WhiteFideId "14531534"]
[BlackFideId "911925"]
[WhiteElo "2540"]
[BlackElo "2616"]
[Result "1-0"]
[Round "09"]
[TimeControl "180+1"]
[Date "2022.05.31"]
[WhiteClock "0:00:07"]
[BlackClock "0:00:05"]

1. d4 {[%clk 0:03:00]}  Nf6 {[%clk 0:02:56]} 2. c4 {[%clk 0:03:00]}  e6 {[%clk 0:02:56]} 3. Nf3 {[%clk 0:03:00]}  c5 {[%clk 0:02:55]} 4. d5 {[%clk 0:02:57]}  d6 {[%clk 0:02:55]} 5. Nc3 {[%clk 0:02:56]}  exd5 {[%clk 0:02:55]} 6. cxd5 {[%clk 0:02:57]}  g6 {[%clk 0:02:55]} 7. e4 {[%clk 0:02:54]}  a6 {[%clk 0:02:54]} 8. Bg5 {[%clk 0:02:55]}  h6 {[%clk 0:02:52]} 9. Bh4 {[%clk 0:02:55]}  g5 {[%clk 0:02:51]} 10. Bg3 {[%clk 0:02:55]}  Nh5 {[%clk 0:02:52]} 11. Nd2 {[%clk 0:02:48]}  Nxg3 {[%clk 0:02:51]} 12. hxg3 {[%clk 0:02:49]}  b5 {[%clk 0:02:48]} 13. Qc2 {[%clk 0:02:49]}  Nd7 {[%clk 0:02:45]} 14. a4 {[%clk 0:02:49]}  b4 {[%clk 0:02:44]} 15. Nd1 {[%clk 0:02:49]}  Rb8 {[%clk 0:02:42]} 16. Ne3 {[%clk 0:02:46]}  b3 {[%clk 0:02:42]} 17. Qc3 {[%clk 0:02:32]}  Rg8 {[%clk 0:02:31]} 18. Ndc4 {[%clk 0:02:15]}  Bg7 {[%clk 0:02:25]} 19. Nxd6+ {[%clk 0:02:07]}  Kf8 {[%clk 0:02:24]} 20. Qd2 {[%clk 0:02:08]}  Rb4 {[%clk 0:01:57]} 21. Ndc4 {[%clk 0:01:35]}  Ne5 {[%clk 0:01:41]} 22. Be2 {[%clk 0:01:30]}  Nxc4 {[%clk 0:01:22]} 23. Nxc4 {[%clk 0:01:31]}  Qe8 {[%clk 0:01:03]} 24. O-O {[%clk 0:01:08]}  Bd4 {[%clk 0:01:01]} 25. Rfe1 {[%clk 0:00:36]}  Rg6 {[%clk 0:00:49]} 26. e5 {[%clk 0:00:36]}  Bb7 {[%clk 0:00:40]} 27. d6 {[%clk 0:00:27]}  Bd5 {[%clk 0:00:37]} 28. Ne3 {[%clk 0:00:23]}  Qxe5 {[%clk 0:00:31]} 29. d7 {[%clk 0:00:21]}  Qd6 {[%clk 0:00:25]} 30. Nf5 {[%clk 0:00:18]}  Qxd7 {[%clk 0:00:23]} 31. Nxd4 {[%clk 0:00:10]}  Rxd4 {[%clk 0:00:23]} 32. Qc3 {[%clk 0:00:10]}  Rc6 {[%clk 0:00:22]} 33. Rad1 {[%clk 0:00:08]}  Be6 {[%clk 0:00:22]} 34. Bf3 {[%clk 0:00:07]}  Rc8 {[%clk 0:00:22]} 35. Rc1 {[%clk 0:00:06]}  Kg8 {[%clk 0:00:20]} 36. Re5 {[%clk 0:00:04]}  Qd6 {[%clk 0:00:18]} 37. Rxc5 {[%clk 0:00:02]}  Rxc5 {[%clk 0:00:17]} 38. Qxc5 {[%clk 0:00:03]}  Qxc5 {[%clk 0:00:18]} 39. Rxc5 {[%clk 0:00:04]}  Rd2 {[%clk 0:00:18]} 40. Rc6 {[%clk 0:00:03]}  a5 {[%clk 0:00:18]} 41. Rc5 {[%clk 0:00:03]}  Rxb2 {[%clk 0:00:18]} 42. Rxa5 {[%clk 0:00:04]}  Ra2 {[%clk 0:00:19]} 43. Rb5 {[%clk 0:00:04]}  Rxa4 {[%clk 0:00:19]} 44. Be4 {[%clk 0:00:03]}  Ra1+ {[%clk 0:00:18]} 45. Kh2 {[%clk 0:00:03]}  Ra2 {[%clk 0:00:18]} 46. f4 {[%clk 0:00:04]}  gxf4 {[%clk 0:00:17]} 47. gxf4 {[%clk 0:00:04]}  Re2 {[%clk 0:00:17]} 48. Bd3 {[%clk 0:00:04]}  Rd2 {[%clk 0:00:18]} 49. Be4 {[%clk 0:00:03]}  b2 {[%clk 0:00:18]} 50. f5 {[%clk 0:00:04]}  Bc4 {[%clk 0:00:18]} 51. Rb4 {[%clk 0:00:04]}  Ba2 {[%clk 0:00:18]} 52. f6 {[%clk 0:00:03]}  Rd8 {[%clk 0:00:11]} 53. Rxb2 {[%clk 0:00:02]}  Be6 {[%clk 0:00:11]} 54. Rb4 {[%clk 0:00:03]}  Kf8 {[%clk 0:00:11]} 55. Kg3 {[%clk 0:00:02]}  Ke8 {[%clk 0:00:10]} 56. Kf4 {[%clk 0:00:03]}  Kd7 {[%clk 0:00:10]} 57. Ke5 {[%clk 0:00:03]}  Kc7 {[%clk 0:00:10]} 58. Rb7+ {[%clk 0:00:03]}  Kc8 {[%clk 0:00:11]} 59. Re7 {[%clk 0:00:04]}  Bb3 {[%clk 0:00:11]} 60. Bf5+ {[%clk 0:00:03]}  Kb8 {[%clk 0:00:10]} 61. Be4 {[%clk 0:00:04]}  Kc8 {[%clk 0:00:10]} 62. g4 {[%clk 0:00:03]}  Ba2 {[%clk 0:00:10]} 63. Bf5+ {[%clk 0:00:03]}  Kb8 {[%clk 0:00:10]} 64. Be4 {[%clk 0:00:04]}  Kc8 {[%clk 0:00:10]} 65. Ra7 {[%clk 0:00:05]}  Bb3 {[%clk 0:00:09]} 66. Bc6 {[%clk 0:00:04]}  Be6 {[%clk 0:00:08]} 67. Re7 {[%clk 0:00:04]}  Bc4 {[%clk 0:00:07]} 68. Ba4 {[%clk 0:00:04]}  Rd5+ {[%clk 0:00:07]} 69. Ke4 {[%clk 0:00:03]}  Ra5 {[%clk 0:00:07]} 70. Be8 {[%clk 0:00:04]}  Bb3 {[%clk 0:00:04]} 71. Bxf7 {[%clk 0:00:04]}  Bc2+ {[%clk 0:00:05]} 72. Kf4 {[%clk 0:00:04]}  Ra4+ {[%clk 0:00:05]} 73. Kg3 {[%clk 0:00:04]}  Bd1 {[%clk 0:00:04]} 74. Be6+ {[%clk 0:00:04]}  Kd8 {[%clk 0:00:04]} 75. Rd7+ {[%clk 0:00:05]}  Ke8 {[%clk 0:00:05]} 76. f7+ {[%clk 0:00:05]}  Kf8 {[%clk 0:00:04]} 77. Rd8+ {[%clk 0:00:06]}  Ke7 {[%clk 0:00:05]} 78. f8=Q+ {[%clk 0:00:07]} 1-0


[Site "https://www.chess.com"]